[Event "Titled Tuesday Blitz June 21 Early 2022"]
[White "Lorente Serrano, Rosa Adela"]
[Black "Veiga, Jose Francisco R P Neves"]
[WhiteFideId "32091982"]
[BlackFideId "1930087"]
[WhiteElo "1820"]
[BlackElo "2326"]
[Result "0-1"]
[Round "03"]
[TimeControl "180+1"]
[Date "2022.06.22"]
[WhiteClock "0:00:08"]
[BlackClock "0:00:27"]

1. b3 {[%clk 0:03:00]}  a5 {[%clk 0:02:58]} 2. a4 {[%clk 0:02:59]}  Nc6 {[%clk 0:02:58]} 3. Bb2 {[%clk 0:02:59]}  Nf6 {[%clk 0:02:58]} 4. Nf3 {[%clk 0:02:57]}  e6 {[%clk 0:02:58]} 5. g3 {[%clk 0:02:55]}  Be7 {[%clk 0:02:59]} 6. Bg2 {[%clk 0:02:55]}  O-O {[%clk 0:02:59]} 7. O-O {[%clk 0:02:54]}  d6 {[%clk 0:02:59]} 8. Re1 {[%clk 0:02:51]}  e5 {[%clk 0:02:58]} 9. e4 {[%clk 0:02:50]}  Nd7 {[%clk 0:02:52]} 10. d4 {[%clk 0:02:50]}  exd4 {[%clk 0:02:53]} 11. Nxd4 {[%clk 0:02:49]}  Nxd4 {[%clk 0:02:53]} 12. Bxd4 {[%clk 0:02:47]}  Bf6 {[%clk 0:02:54]} 13. Nc3 {[%clk 0:02:46]}  Ne5 {[%clk 0:02:45]} 14. h3 {[%clk 0:02:44]}  Be6 {[%clk 0:02:40]} 15. Qd2 {[%clk 0:02:35]}  h5 {[%clk 0:02:29]} 16. Rad1 {[%clk 0:02:32]}  h4 {[%clk 0:02:15]} 17. g4 {[%clk 0:02:22]}  Nc6 {[%clk 0:02:09]} 18. Bxf6 {[%clk 0:02:17]}  Qxf6 {[%clk 0:02:10]} 19. f4 {[%clk 0:02:16]}  Qh6 {[%clk 0:01:42]} 20. g5 {[%clk 0:02:03]}  Qh5 {[%clk 0:01:38]} 21. f5 {[%clk 0:02:02]}  Bd7 {[%clk 0:01:37]} 22. Nd5 {[%clk 0:02:00]}  Rac8 {[%clk 0:01:32]} 23. Qf4 {[%clk 0:01:34]}  Rfe8 {[%clk 0:01:30]} 24. Bf3 {[%clk 0:01:32]}  Qh8 {[%clk 0:01:26]} 25. Rd2 {[%clk 0:01:21]}  Ne5 {[%clk 0:01:26]} 26. Rg2 {[%clk 0:01:15]}  Bc6 {[%clk 0:01:22]} 27. Nf6+ {[%clk 0:00:33]}  Kf8 {[%clk 0:01:19]} 28. Nh5 {[%clk 0:00:24]}  Bxe4 {[%clk 0:00:57]} 29. Rxe4 {[%clk 0:00:21]}  Nxf3+ {[%clk 0:00:57]} 30. Qxf3 {[%clk 0:00:20]}  Rxe4 {[%clk 0:00:57]} 31. Nf6 {[%clk 0:00:16]}  Re1+ {[%clk 0:00:34]} 32. Kf2 {[%clk 0:00:16]}  gxf6 {[%clk 0:00:34]} 33. Kxe1 {[%clk 0:00:15]}  fxg5 {[%clk 0:00:31]} 34. Rxg5 {[%clk 0:00:14]}  Qe5+ {[%clk 0:00:30]} 35. Kf2 {[%clk 0:00:14]}  Re8 {[%clk 0:00:28]} 36. Rh5 {[%clk 0:00:11]}  Qe1+ {[%clk 0:00:27]} 37. Kg2 {[%clk 0:00:08]}  Re2+ {[%clk 0:00:27]} 0-1


[Site "https://www.chess.com"]

[Event "Titled Tuesday Blitz June 21 Early 2022"]
[White "Mahdavi, Reza"]
[Black "Lashkin, Jegor"]
[WhiteFideId "12595926"]
[BlackFideId "13907808"]
[WhiteElo "2265"]
[BlackElo "2368"]
[Result "1-0"]
[Round "03"]
[TimeControl "180+1"]
[Date "2022.06.21"]
[WhiteClock "0:00:52"]
[BlackClock "0:00:02"]

1. e4 {[%clk 0:03:00]}  c5 {[%clk 0:03:00]} 2. Nf3 {[%clk 0:02:59]}  d6 {[%clk 0:03:00]} 3. Bb5+ {[%clk 0:02:59]}  Nd7 {[%clk 0:03:00]} 4. c3 {[%clk 0:02:59]}  Nf6 {[%clk 0:02:59]} 5. Qe2 {[%clk 0:02:59]}  a6 {[%clk 0:03:00]} 6. Ba4 {[%clk 0:02:59]}  b5 {[%clk 0:03:00]} 7. Bc2 {[%clk 0:02:59]}  Bb7 {[%clk 0:03:00]} 8. d4 {[%clk 0:03:00]}  g6 {[%clk 0:02:57]} 9. O-O {[%clk 0:03:00]}  Bg7 {[%clk 0:02:57]} 10. Re1 {[%clk 0:02:58]}  O-O {[%clk 0:02:46]} 11. e5 {[%clk 0:02:55]}  Nd5 {[%clk 0:02:34]} 12. e6 {[%clk 0:02:50]}  fxe6 {[%clk 0:02:23]} 13. Qxe6+ {[%clk 0:02:51]}  Kh8 {[%clk 0:02:23]} 14. Ng5 {[%clk 0:02:51]}  Qe8 {[%clk 0:02:08]} 15. Qh3 {[%clk 0:02:36]}  N7f6 {[%clk 0:01:58]} 16. Ne6 {[%clk 0:02:35]}  Bc8 {[%clk 0:01:51]} 17. Nxg7 {[%clk 0:02:36]}  Kxg7 {[%clk 0:01:48]} 18. Bh6+ {[%clk 0:02:19]}  Kg8 {[%clk 0:01:35]} 19. Qh4 {[%clk 0:02:20]}  Rf7 {[%clk 0:01:35]} 20. Nd2 {[%clk 0:02:18]}  Ng4 {[%clk 0:01:13]} 21. Nf3 {[%clk 0:02:17]}  Nxh6 {[%clk 0:01:12]} 22. Qxh6 {[%clk 0:02:18]}  Nf6 {[%clk 0:01:02]} 23. Bxg6 {[%clk 0:02:08]}  hxg6 {[%clk 0:01:01]} 24. Qxg6+ {[%clk 0:02:09]}  Rg7 {[%clk 0:01:01]} 25. Qxf6 {[%clk 0:02:08]}  Bh3 {[%clk 0:00:48]} 26. Qf4 {[%clk 0:01:40]}  Bxg2 {[%clk 0:00:39]} 27. Ng5 {[%clk 0:01:40]}  Qh5 {[%clk 0:00:30]} 28. h4 {[%clk 0:01:38]}  Rf8 {[%clk 0:00:28]} 29. Qg3 {[%clk 0:01:35]}  Bd5 {[%clk 0:00:24]} 30. Re3 {[%clk 0:01:32]}  Rf5 {[%clk 0:00:22]} 31. f4 {[%clk 0:01:29]}  cxd4 {[%clk 0:00:14]} 32. cxd4 {[%clk 0:01:29]}  e5 {[%clk 0:00:15]} 33. dxe5 {[%clk 0:01:29]}  dxe5 {[%clk 0:00:15]} 34. Rae1 {[%clk 0:01:27]}  Re7 {[%clk 0:00:07]} 35. Rxe5 {[%clk 0:00:59]}  Rexe5 {[%clk 0:00:07]} 36. fxe5 {[%clk 0:01:00]}  Kh8 {[%clk 0:00:05]} 37. e6 {[%clk 0:00:59]}  Bxe6 {[%clk 0:00:04]} 38. Nxe6 {[%clk 0:00:54]}  Qh6 {[%clk 0:00:03]} 39. Qc3+ {[%clk 0:00:52]}  Kg8 {[%clk 0:00:02]} 40. Qc8+ {[%clk 0:00:52]} 1-0


[Site "https://www.chess.com"]

[Event "Titled Tuesday Blitz June 21 Early 2022"]
[White "Mahitosh, Dey"]
[Black "Priyanka Nutakki"]
[WhiteFideId "25091468"]
[BlackFideId "25049615"]
[WhiteElo "1624"]
[BlackElo "1912"]
[Result "1-0"]
[Round "03"]
[TimeControl "180+1"]
[Date "2022.06.22"]
[WhiteClock "0:01:19"]
[BlackClock "0:01:20"]

1. d4 {[%clk 0:02:57]}  d5 {[%clk 0:02:59]} 2. Nf3 {[%clk 0:02:54]}  Nf6 {[%clk 0:02:59]} 3. c3 {[%clk 0:02:51]}  e6 {[%clk 0:02:56]} 4. Bf4 {[%clk 0:02:50]}  Bd6 {[%clk 0:02:55]} 5. e3 {[%clk 0:02:51]}  O-O {[%clk 0:02:55]} 6. Bd3 {[%clk 0:02:47]}  c5 {[%clk 0:02:55]} 7. Ne5 {[%clk 0:02:39]}  Qc7 {[%clk 0:02:51]} 8. Nd2 {[%clk 0:02:38]}  Nc6 {[%clk 0:02:51]} 9. Ndf3 {[%clk 0:02:35]}  b6 {[%clk 0:02:44]} 10. O-O {[%clk 0:02:27]}  Bb7 {[%clk 0:02:44]} 11. Nxc6 {[%clk 0:02:16]}  Bxc6 {[%clk 0:02:43]} 12. Bxd6 {[%clk 0:02:16]}  Qxd6 {[%clk 0:02:44]} 13. Ne5 {[%clk 0:02:16]}  Bb7 {[%clk 0:02:37]} 14. g4 {[%clk 0:02:14]}  Rad8 {[%clk 0:02:27]} 15. g5 {[%clk 0:02:11]}  Nd7 {[%clk 0:02:25]} 16. f4 {[%clk 0:02:01]}  Qe7 {[%clk 0:02:07]} 17. Bxh7+ {[%clk 0:01:26]}  Kxh7 {[%clk 0:02:03]} 18. Qh5+ {[%clk 0:01:27]}  Kg8 {[%clk 0:02:03]} 19. Rf3 {[%clk 0:01:27]}  Nxe5 {[%clk 0:01:42]} 20. dxe5 {[%clk 0:01:20]}  f6 {[%clk 0:01:20]} 21. g6 {[%clk 0:01:19]} 1-0


[Site "https://www.chess.com"]

[Event "Titled Tuesday Blitz June 21 Early 2022"]
[White "Maiorov, Nikita"]
[Black "Fedoseev, Vladimir"]
[WhiteFideId "13501720"]
[BlackFideId "24130737"]
[WhiteElo "2417"]
[BlackElo "2726"]
[Result "0-1"]
[Round "03"]
[TimeControl "180+1"]
[Date "2022.06.22"]
[WhiteClock "0:00:07"]
[BlackClock "0:00:24"]

1. d4 {[%clk 0:03:00]}  Nf6 {[%clk 0:02:19]} 2. c4 {[%clk 0:02:59]}  g6 {[%clk 0:02:20]} 3. g3 {[%clk 0:02:55]}  Bg7 {[%clk 0:02:19]} 4. Bg2 {[%clk 0:02:55]}  O-O {[%clk 0:02:20]} 5. Nc3 {[%clk 0:02:53]}  c5 {[%clk 0:02:19]} 6. d5 {[%clk 0:02:52]}  e6 {[%clk 0:02:18]} 7. Nf3 {[%clk 0:02:52]}  exd5 {[%clk 0:02:18]} 8. cxd5 {[%clk 0:02:52]}  d6 {[%clk 0:02:19]} 9. O-O {[%clk 0:02:52]}  Re8 {[%clk 0:02:16]} 10. Re1 {[%clk 0:02:52]}  Ne4 {[%clk 0:02:15]} 11. Nxe4 {[%clk 0:02:50]}  Rxe4 {[%clk 0:02:16]} 12. Qc2 {[%clk 0:02:49]}  Bf5 {[%clk 0:02:13]} 13. Bh3 {[%clk 0:02:43]}  Re5 {[%clk 0:01:58]} 14. Bxf5 {[%clk 0:02:40]}  Rxf5 {[%clk 0:01:58]} 15. Qd1 {[%clk 0:02:29]}  Nd7 {[%clk 0:01:43]} 16. e4 {[%clk 0:02:24]}  Rh5 {[%clk 0:01:39]} 17. Bf4 {[%clk 0:02:14]}  Qf6 {[%clk 0:01:24]} 18. Kg2 {[%clk 0:02:09]}  g5 {[%clk 0:01:21]} 19. e5 {[%clk 0:01:13]}  Qg6 {[%clk 0:01:11]} 20. e6 {[%clk 0:01:03]}  gxf4 {[%clk 0:00:51]} 21. exd7 {[%clk 0:01:02]}  Be5 {[%clk 0:00:52]} 22. g4 {[%clk 0:00:28]}  Qxg4+ {[%clk 0:00:45]} 23. Kh1 {[%clk 0:00:28]}  Qxd7 {[%clk 0:00:42]} 24. Rg1+ {[%clk 0:00:21]}  Kh8 {[%clk 0:00:41]} 25. Ng5 {[%clk 0:00:19]}  Rh6 {[%clk 0:00:38]} 26. Qf3 {[%clk 0:00:16]}  Rg8 {[%clk 0:00:37]} 27. Rg2 {[%clk 0:00:15]}  Rgg6 {[%clk 0:00:27]} 28. Rag1 {[%clk 0:00:14]}  Kg7 {[%clk 0:00:26]} 29. b3 {[%clk 0:00:10]}  Kf8 {[%clk 0:00:25]} 30. Ne4 {[%clk 0:00:08]}  Rh3 {[%clk 0:00:24]} 31. Qd1 {[%clk 0:00:07]}  f3 {[%clk 0:00:24]} 0-1


[Site "https://www.chess.com"]

[Event "Titled Tuesday Blitz June 21 Early 2022"]
[White "Makarian, Rudik"]
[Black "Svane, Rasmus"]
[WhiteFideId "44105681"]
[BlackFideId "4657101"]
[WhiteElo "2398"]
[BlackElo "2674"]
[Result "1-0"]
[Round "03"]
[TimeControl "180+1"]
[Date "2022.06.21"]
[WhiteClock "0:00:36"]
[BlackClock "0:00:04"]

1. d3 {[%clk 0:03:00]}  d5 {[%clk 0:02:59]} 2. f4 {[%clk 0:03:01]}  g6 {[%clk 0:02:58]} 3. Nf3 {[%clk 0:03:01]}  Bg7 {[%clk 0:02:59]} 4. g3 {[%clk 0:03:01]}  Nd7 {[%clk 0:02:48]} 5. Bg2 {[%clk 0:02:56]}  e5 {[%clk 0:02:48]} 6. Nc3 {[%clk 0:02:53]}  Ne7 {[%clk 0:02:47]} 7. O-O {[%clk 0:02:52]}  d4 {[%clk 0:02:44]} 8. Ne4 {[%clk 0:02:50]}  exf4 {[%clk 0:02:38]} 9. Bxf4 {[%clk 0:02:47]}  Nd5 {[%clk 0:02:35]} 10. Bg5 {[%clk 0:02:44]}  f6 {[%clk 0:02:36]} 11. Bd2 {[%clk 0:02:36]}  O-O {[%clk 0:02:33]} 12. c4 {[%clk 0:02:30]}  dxc3 {[%clk 0:02:31]} 13. bxc3 {[%clk 0:02:30]}  f5 {[%clk 0:02:29]} 14. Qb3 {[%clk 0:02:30]}  c6 {[%clk 0:02:22]} 15. Neg5 {[%clk 0:02:11]}  Qb6+ {[%clk 0:02:16]} 16. d4 {[%clk 0:02:06]}  Re8 {[%clk 0:02:11]} 17. Rfe1 {[%clk 0:02:01]}  h6 {[%clk 0:02:10]} 18. Nh3 {[%clk 0:01:59]}  g5 {[%clk 0:02:09]} 19. Nf2 {[%clk 0:01:59]}  Nf6 {[%clk 0:02:04]} 20. Ne5 {[%clk 0:01:56]}  Be6 {[%clk 0:01:47]} 21. Rab1 {[%clk 0:01:51]}  Qxb3 {[%clk 0:01:46]} 22. axb3 {[%clk 0:01:51]}  Nd7 {[%clk 0:01:39]} 23. Nxd7 {[%clk 0:01:48]}  Bxd7 {[%clk 0:01:40]} 24. e4 {[%clk 0:01:48]}  fxe4 {[%clk 0:01:41]} 25. Nxe4 {[%clk 0:01:47]}  b6 {[%clk 0:01:25]} 26. Nd6 {[%clk 0:01:43]}  Rxe1+ {[%clk 0:01:20]} 27. Rxe1 {[%clk 0:01:42]}  a5 {[%clk 0:01:06]} 28. Nc4 {[%clk 0:01:39]}  Rb8 {[%clk 0:00:55]} 29. Ne5 {[%clk 0:01:33]}  Be8 {[%clk 0:00:47]} 30. c4 {[%clk 0:01:31]}  Nb4 {[%clk 0:00:39]} 31. Bxb4 {[%clk 0:01:31]}  axb4 {[%clk 0:00:40]} 32. Bxc6 {[%clk 0:01:31]}  Bxe5 {[%clk 0:00:40]} 33. Bd5+ {[%clk 0:01:31]}  Kf8 {[%clk 0:00:37]} 34. Rxe5 {[%clk 0:01:30]}  Bg6 {[%clk 0:00:35]} 35. Re6 {[%clk 0:01:25]}  Bc2 {[%clk 0:00:34]} 36. c5 {[%clk 0:01:23]}  bxc5 {[%clk 0:00:29]} 37. dxc5 {[%clk 0:01:24]}  Rd8 {[%clk 0:00:29]} 38. Bc4 {[%clk 0:01:16]}  Rc8 {[%clk 0:00:15]} 39. Rxh6 {[%clk 0:01:01]}  Rxc5 {[%clk 0:00:14]} 40. Rb6 {[%clk 0:01:02]}  Ke7 {[%clk 0:00:10]} 41. Rxb4 {[%clk 0:01:00]}  Kf6 {[%clk 0:00:10]} 42. Kf2 {[%clk 0:00:56]}  Ke5 {[%clk 0:00:10]} 43. Ke3 {[%clk 0:00:55]}  g4 {[%clk 0:00:09]} 44. Rb8 {[%clk 0:00:53]}  Bf5 {[%clk 0:00:08]} 45. Re8+ {[%clk 0:00:52]}  Kf6 {[%clk 0:00:08]} 46. Kd4 {[%clk 0:00:52]}  Ra5 {[%clk 0:00:08]} 47. b4 {[%clk 0:00:52]}  Ra1 {[%clk 0:00:08]} 48. b5 {[%clk 0:00:48]}  Bd7 {[%clk 0:00:05]} 49. Rf8+ {[%clk 0:00:45]}  Ke7 {[%clk 0:00:05]} 50. Rf7+ {[%clk 0:00:42]}  Kd6 {[%clk 0:00:06]} 51. Rf6+ {[%clk 0:00:42]}  Kc7 {[%clk 0:00:06]} 52. b6+ {[%clk 0:00:41]}  Kb7 {[%clk 0:00:02]} 53. Bd5+ {[%clk 0:00:38]}  Ka6 {[%clk 0:00:02]} 54. b7+ {[%clk 0:00:35]}  Ka7 {[%clk 0:00:03]} 55. Rf8 {[%clk 0:00:36]}  Rb1 {[%clk 0:00:03]} 56. Ra8+ {[%clk 0:00:35]}  Kb6 {[%clk 0:00:04]} 57. b8=Q# {[%clk 0:00:36]} 1-0


[Site "https://www.chess.com"]

[Event "Titled Tuesday Blitz June 21 Early 2022"]
[White "Maltsevskaya, Aleksandra"]
[Black "D`Arruda, Ricardo D."]
[WhiteFideId "24174041"]
[BlackFideId "100692"]
[WhiteElo "2243"]
[BlackElo "2502"]
[Result "0-1"]
[Round "03"]
[TimeControl "180+1"]
[Date "2022.06.22"]
[WhiteClock "0:01:02"]
[BlackClock "0:01:42"]

1. e3 {[%clk 0:03:00]}  d5 {[%clk 0:02:59]} 2. d4 {[%clk 0:02:59]}  Nf6 {[%clk 0:02:59]} 3. Nf3 {[%clk 0:02:59]}  c5 {[%clk 0:02:58]} 4. c4 {[%clk 0:03:00]}  e6 {[%clk 0:02:57]} 5. Nc3 {[%clk 0:03:00]}  Nc6 {[%clk 0:02:56]} 6. cxd5 {[%clk 0:03:00]}  Nxd5 {[%clk 0:02:56]} 7. Bd3 {[%clk 0:02:54]}  Be7 {[%clk 0:02:55]} 8. O-O {[%clk 0:02:54]}  O-O {[%clk 0:02:54]} 9. Bd2 {[%clk 0:02:53]}  Nxc3 {[%clk 0:02:50]} 10. bxc3 {[%clk 0:02:51]}  b6 {[%clk 0:02:50]} 11. Qc2 {[%clk 0:02:48]}  h6 {[%clk 0:02:49]} 12. Rac1 {[%clk 0:02:25]}  Bb7 {[%clk 0:02:49]} 13. Rfd1 {[%clk 0:02:23]}  Rc8 {[%clk 0:02:47]} 14. Qb1 {[%clk 0:02:22]}  cxd4 {[%clk 0:02:42]} 15. cxd4 {[%clk 0:02:20]}  Nb8 {[%clk 0:02:29]} 16. e4 {[%clk 0:02:16]}  Qd6 {[%clk 0:02:16]} 17. Be3 {[%clk 0:02:10]}  Rxc1 {[%clk 0:02:14]} 18. Rxc1 {[%clk 0:02:09]}  Rc8 {[%clk 0:02:14]} 19. Rxc8+ {[%clk 0:02:06]}  Bxc8 {[%clk 0:02:15]} 20. e5 {[%clk 0:02:06]}  Qc7 {[%clk 0:02:05]} 21. h4 {[%clk 0:01:58]}  Ba6 {[%clk 0:02:04]} 22. Bxa6 {[%clk 0:01:44]}  Nxa6 {[%clk 0:02:05]} 23. Qe4 {[%clk 0:01:44]}  Nb4 {[%clk 0:01:56]} 24. Qg4 {[%clk 0:01:36]}  Kh8 {[%clk 0:01:49]} 25. Qh5 {[%clk 0:01:36]}  Bf8 {[%clk 0:01:47]} 26. g4 {[%clk 0:01:02]}  g6 {[%clk 0:01:42]} 0-1


[Site "https://www.chess.com"]

[Event "Titled Tuesday Blitz June 21 Early 2022"]
[White "Mangialardo, Tiago Carvalho"]
[Black "Wartiovaara, Oliver"]
[WhiteFideId "2130718"]
[BlackFideId "513024"]
[WhiteElo "2085"]
[BlackElo "1971"]
[Result "1-0"]
[Round "03"]
[TimeControl "180+1"]
[Date "2022.06.22"]
[WhiteClock "0:00:03"]
[BlackClock "0:00:03"]

1. e4 {[%clk 0:03:00]}  Nf6 {[%clk 0:02:56]} 2. Nc3 {[%clk 0:02:56]}  d5 {[%clk 0:02:50]} 3. exd5 {[%clk 0:02:55]}  Nxd5 {[%clk 0:02:51]} 4. Nxd5 {[%clk 0:02:23]}  Qxd5 {[%clk 0:02:52]} 5. d4 {[%clk 0:02:24]}  e5 {[%clk 0:02:49]} 6. dxe5 {[%clk 0:02:18]}  Qxd1+ {[%clk 0:02:49]} 7. Kxd1 {[%clk 0:02:18]}  Nc6 {[%clk 0:02:49]} 8. Bf4 {[%clk 0:02:06]}  Bg4+ {[%clk 0:02:49]} 9. Be2 {[%clk 0:02:02]}  O-O-O+ {[%clk 0:02:49]} 10. Ke1 {[%clk 0:01:23]}  Bxe2 {[%clk 0:02:20]} 11. Nxe2 {[%clk 0:01:21]}  Bc5 {[%clk 0:02:20]} 12. Bg3 {[%clk 0:00:55]}  Rhe8 {[%clk 0:02:14]} 13. f4 {[%clk 0:00:55]}  Nb4 {[%clk 0:02:06]} 14. Kf1 {[%clk 0:00:42]}  Nxc2 {[%clk 0:01:59]} 15. Rc1 {[%clk 0:00:30]}  Ne3+ {[%clk 0:01:49]} 16. Kg1 {[%clk 0:00:14]}  Bb6 {[%clk 0:01:35]} 17. Bf2 {[%clk 0:00:14]}  Rd2 {[%clk 0:01:34]} 18. Nc3 {[%clk 0:00:04]}  f6 {[%clk 0:01:12]} 19. Ne4 {[%clk 0:00:04]}  fxe5 {[%clk 0:01:08]} 20. Nxd2 {[%clk 0:00:03]}  exf4 {[%clk 0:01:07]} 21. Nf3 {[%clk 0:00:02]}  h6 {[%clk 0:01:00]} 22. h3 {[%clk 0:00:03]}  g5 {[%clk 0:01:00]} 23. Kh2 {[%clk 0:00:03]}  g4 {[%clk 0:00:59]} 24. Bxe3 {[%clk 0:00:01]}  Bxe3 {[%clk 0:00:58]} 25. hxg4 {[%clk 0:00:02]}  Bxc1 {[%clk 0:00:58]} 26. Rxc1 {[%clk 0:00:03]}  Re2 {[%clk 0:00:57]} 27. Rb1 {[%clk 0:00:03]}  c5 {[%clk 0:00:55]} 28. Kh3 {[%clk 0:00:03]}  b5 {[%clk 0:00:54]} 29. a3 {[%clk 0:00:03]}  c4 {[%clk 0:00:54]} 30. Nd4 {[%clk 0:00:02]}  Re3+ {[%clk 0:00:43]} 31. Kh2 {[%clk 0:00:01]}  a6 {[%clk 0:00:36]} 32. Rf1 {[%clk 0:00:02]}  c3 {[%clk 0:00:33]} 33. bxc3 {[%clk 0:00:02]}  Rxc3 {[%clk 0:00:34]} 34. Rxf4 {[%clk 0:00:02]}  Rxa3 {[%clk 0:00:34]} 35. Rf8+ {[%clk 0:00:03]}  Kd7 {[%clk 0:00:34]} 36. Rf6 {[%clk 0:00:04]}  b4 {[%clk 0:00:31]} 37. Rb6 {[%clk 0:00:03]}  a5 {[%clk 0:00:29]} 38. Rxh6 {[%clk 0:00:03]}  Rd3 {[%clk 0:00:28]} 39. Nf3 {[%clk 0:00:02]}  a4 {[%clk 0:00:26]} 40. Rb6 {[%clk 0:00:03]}  b3 {[%clk 0:00:26]} 41. g5 {[%clk 0:00:04]}  a3 {[%clk 0:00:26]} 42. g6 {[%clk 0:00:03]}  a2 {[%clk 0:00:24]} 43. g7 {[%clk 0:00:01]}  a1=Q {[%clk 0:00:22]} 44. g8=Q {[%clk 0:00:02]}  Rd6 {[%clk 0:00:04]} 45. Qf7+ {[%clk 0:00:02]}  Kc8 {[%clk 0:00:03]} 46. Qb7+ {[%clk 0:00:01]}  Kd8 {[%clk 0:00:03]} 47. Rxd6+ {[%clk 0:00:02]}  Ke8 {[%clk 0:00:03]} 48. Qd7+ {[%clk 0:00:03]} 1-0


[Site "https://www.chess.com"]

[Event "Titled Tuesday Blitz June 21 Early 2022"]
[White "Marn, Jan"]
[Black "Pinheiro, Iung Alicio de O."]
[WhiteFideId "14619245"]
[BlackFideId "2104350"]
[WhiteElo "2105"]
[BlackElo "2283"]
[Result "0-1"]
[Round "03"]
[TimeControl "180+1"]
[Date "2022.06.22"]
[WhiteClock "0:01:10"]
[BlackClock "0:00:42"]

1. d4 {[%clk 0:03:00]}  Nf6 {[%clk 0:02:53]} 2. c4 {[%clk 0:03:01]}  Nc6 {[%clk 0:02:47]} 3. Nf3 {[%clk 0:02:57]}  e6 {[%clk 0:02:47]} 4. g3 {[%clk 0:02:57]}  Bb4+ {[%clk 0:02:46]} 5. Bd2 {[%clk 0:02:56]}  a5 {[%clk 0:02:39]} 6. Bg2 {[%clk 0:02:56]}  O-O {[%clk 0:02:39]} 7. O-O {[%clk 0:02:56]}  Bxd2 {[%clk 0:02:24]} 8. Qxd2 {[%clk 0:02:44]}  d6 {[%clk 0:02:24]} 9. Nc3 {[%clk 0:02:43]}  Qe7 {[%clk 0:02:21]} 10. Rfe1 {[%clk 0:02:17]}  e5 {[%clk 0:02:14]} 11. e4 {[%clk 0:02:17]}  Bg4 {[%clk 0:02:11]} 12. Nb5 {[%clk 0:02:00]}  Rfe8 {[%clk 0:01:33]} 13. d5 {[%clk 0:01:38]}  Nb8 {[%clk 0:01:26]} 14. b3 {[%clk 0:01:28]}  Rd8 {[%clk 0:01:17]} 15. a3 {[%clk 0:01:27]}  c6 {[%clk 0:01:17]} 16. Nc3 {[%clk 0:01:27]}  Na6 {[%clk 0:00:58]} 17. Qc2 {[%clk 0:01:20]}  Qc7 {[%clk 0:00:51]} 18. Nd2 {[%clk 0:01:19]}  h6 {[%clk 0:00:44]} 19. Qb2 {[%clk 0:01:10]}  Qb6 {[%clk 0:00:42]} 0-1


[Site "https://www.chess.com"]

[Event "Titled Tuesday Blitz June 21 Early 2022"]
[White "Mindlin, Alon"]
[Black "Devaev, Alexander"]
[WhiteFideId "2800071"]
[BlackFideId "4169395"]
[WhiteElo "2390"]
[BlackElo "2185"]
[Result "1-0"]
[Round "03"]
[TimeControl "180+1"]
[Date "2022.06.22"]
[WhiteClock "0:00:49"]
[BlackClock "0:00:04"]

1. d4 {[%clk 0:03:00]}  Nf6 {[%clk 0:02:58]} 2. c4 {[%clk 0:03:00]}  e6 {[%clk 0:02:55]} 3. Nf3 {[%clk 0:03:00]}  c5 {[%clk 0:02:52]} 4. e3 {[%clk 0:02:59]}  cxd4 {[%clk 0:02:52]} 5. exd4 {[%clk 0:03:00]}  d5 {[%clk 0:02:53]} 6. Nc3 {[%clk 0:03:00]}  Bb4 {[%clk 0:02:53]} 7. Bd3 {[%clk 0:02:59]}  dxc4 {[%clk 0:02:53]} 8. Bxc4 {[%clk 0:03:00]}  Nc6 {[%clk 0:02:54]} 9. O-O {[%clk 0:03:01]}  O-O {[%clk 0:02:54]} 10. Bg5 {[%clk 0:03:00]}  Bxc3 {[%clk 0:02:55]} 11. bxc3 {[%clk 0:03:00]}  Ne7 {[%clk 0:02:56]} 12. Bd3 {[%clk 0:02:52]}  b6 {[%clk 0:02:54]} 13. Bxf6 {[%clk 0:02:51]}  gxf6 {[%clk 0:02:54]} 14. Be4 {[%clk 0:02:51]}  Rb8 {[%clk 0:02:54]} 15. Re1 {[%clk 0:02:51]}  Qc7 {[%clk 0:02:32]} 16. Qd2 {[%clk 0:02:44]}  Kg7 {[%clk 0:02:31]} 17. Re3 {[%clk 0:02:17]}  Bb7 {[%clk 0:02:12]} 18. Bxh7 {[%clk 0:02:14]}  Rh8 {[%clk 0:02:06]} 19. Be4 {[%clk 0:02:10]}  Rbg8 {[%clk 0:00:43]} 20. Rae1 {[%clk 0:01:54]}  Kf8 {[%clk 0:00:38]} 21. Qd3 {[%clk 0:01:44]}  Nf5 {[%clk 0:00:22]} 22. R3e2 {[%clk 0:01:32]}  Nh4 {[%clk 0:00:16]} 23. Nxh4 {[%clk 0:01:20]}  Rxh4 {[%clk 0:00:15]} 24. g3 {[%clk 0:01:14]}  Rh5 {[%clk 0:00:13]} 25. Qf3 {[%clk 0:01:09]}  Bxe4 {[%clk 0:00:12]} 26. Qxh5 {[%clk 0:01:08]}  Bg6 {[%clk 0:00:10]} 27. Qh6+ {[%clk 0:01:07]}  Ke7 {[%clk 0:00:10]} 28. d5 {[%clk 0:01:07]}  e5 {[%clk 0:00:10]} 29. Qd2 {[%clk 0:01:05]}  Kd6 {[%clk 0:00:08]} 30. f4 {[%clk 0:01:03]}  Re8 {[%clk 0:00:08]} 31. fxe5+ {[%clk 0:01:03]}  fxe5 {[%clk 0:00:09]} 32. Rxe5 {[%clk 0:01:03]}  Rxe5 {[%clk 0:00:08]} 33. Rxe5 {[%clk 0:01:03]}  Qc5+ {[%clk 0:00:08]} 34. Qe3 {[%clk 0:01:01]}  Qa3 {[%clk 0:00:09]} 35. Qf4 {[%clk 0:00:59]}  Kc5 {[%clk 0:00:09]} 36. d6+ {[%clk 0:00:59]}  Kc6 {[%clk 0:00:09]} 37. Re1 {[%clk 0:00:54]}  Qxa2 {[%clk 0:00:04]} 38. Qd4 {[%clk 0:00:49]} 1-0


[Site "https://www.chess.com"]

[Event "Titled Tuesday Blitz June 21 Early 2022"]
[White "Namitbir Singh Walia"]
[Black "Einarsson, Halldor Gretar"]
[WhiteFideId "35071068"]
[BlackFideId "2300150"]
[WhiteElo "1565"]
[BlackElo "2114"]
[Result "1-0"]
[Round "03"]
[TimeControl "180+1"]
[Date "2022.06.22"]
[WhiteClock "0:00:21"]
[BlackClock "0:00:04"]

1. d4 {[%clk 0:03:00]}  Nf6 {[%clk 0:02:57]} 2. c4 {[%clk 0:03:01]}  g6 {[%clk 0:02:56]} 3. g3 {[%clk 0:03:01]}  Bg7 {[%clk 0:02:45]} 4. Bg2 {[%clk 0:03:01]}  c6 {[%clk 0:02:45]} 5. Nf3 {[%clk 0:02:45]}  d5 {[%clk 0:02:43]} 6. cxd5 {[%clk 0:02:46]}  cxd5 {[%clk 0:02:41]} 7. Nc3 {[%clk 0:02:46]}  O-O {[%clk 0:02:41]} 8. Ne5 {[%clk 0:02:45]}  Nc6 {[%clk 0:02:30]} 9. O-O {[%clk 0:02:39]}  Bf5 {[%clk 0:02:24]} 10. Nxc6 {[%clk 0:02:32]}  bxc6 {[%clk 0:02:23]} 11. Na4 {[%clk 0:02:29]}  Ne4 {[%clk 0:02:14]} 12. b3 {[%clk 0:02:28]}  c5 {[%clk 0:01:58]} 13. Bb2 {[%clk 0:02:10]}  cxd4 {[%clk 0:01:53]} 14. Bxd4 {[%clk 0:02:10]}  e5 {[%clk 0:01:49]} 15. Bb2 {[%clk 0:02:01]}  Rc8 {[%clk 0:01:47]} 16. Rc1 {[%clk 0:01:44]}  Qa5 {[%clk 0:01:39]} 17. g4 {[%clk 0:01:03]}  Bxg4 {[%clk 0:01:13]} 18. f3 {[%clk 0:01:00]}  Bh6 {[%clk 0:00:20]} 19. Rxc8 {[%clk 0:00:55]}  Rxc8 {[%clk 0:00:19]} 20. fxe4 {[%clk 0:00:56]}  d4 {[%clk 0:00:16]} 21. Bf3 {[%clk 0:00:51]}  Bh3 {[%clk 0:00:14]} 22. Bg2 {[%clk 0:00:42]}  Be3+ {[%clk 0:00:13]} 23. Kh1 {[%clk 0:00:42]}  Bd7 {[%clk 0:00:10]} 24. Qe1 {[%clk 0:00:28]}  Qa6 {[%clk 0:00:08]} 25. Qg3 {[%clk 0:00:25]}  Qe6 {[%clk 0:00:05]} 26. Ba3 {[%clk 0:00:22]}  Rc2 {[%clk 0:00:04]} 27. Nc5 {[%clk 0:00:21]} 1-0


[Site "https://www.chess.com"]